bitfinex/quotes_SOLUSD_20260311
["timestamp","ask_amount","ask_price","bid_price","bid_amount"]
[1773235016941,1.24529089,86.086,86.061,1.24007035]
[1773235017336,1.24529089,86.086,86.062,1.24007035]
[1773235017550,1.24529089,86.097,86.062,1.24007035]
[1773235017928,11.61453675,86.099,86.071,1.24007035]
[1773235018130,11.61453675,86.099,86.08,8.79893568]
[1773235018330,11.61453675,86.099,86.08,1.24007035]
[1773235018532,11.61453675,86.099,86.08,8.79893568]
[1773235018845,1.24529089,86.104,86.08,8.79893568]
[1773235019234,29.02959542,86.12,86.091,1.24007035]
[1773235019631,37.83375164,86.12,86.091,1.24007035]
[1773235019831,1.24529089,86.119,86.091,1.24007035]
[1773235020055,12.85713032,86.119,86.091,1.24007035]
[1773235020548,1.24529089,86.118,86.091,1.24007035]
[1773235021852,1.24529089,86.118,86.093,1.24007035]
[1773235022236,1.24529089,86.138,86.101,1.24007035]
[1773235022437,1.24529089,86.137,86.101,1.24007035]
[1773235023051,1.24529089,86.129,86.101,1.24007035]
[1773235023758,1.24529089,86.127,86.101,1.24007035]
[1773235024054,1.24529089,86.127,86.098,11.61457912]
[1773235026067,1.24529089,86.125,86.094,12.85521983]
[1773235026248,1.24529089,86.119,86.09,11.61569766]
[1773235026434,1.24529089,86.119,86.09,19.17456299]
[1773235026646,1.24529089,86.119,86.091,1.24007035]
[1773235026959,1.24529089,86.125,86.091,1.24007035]
[1773235027370,1.24529089,86.138,86.111,1.24007035]
[1773235027570,1.24529089,86.156,86.13,7.55886533]
[1773235027854,34.9910455,86.16,86.121,1.24007035]
[1773235027855,1.24529089,86.149,86.121,1.24007035]
[1773235028056,11.60793053,86.148,86.121,1.24007035]
[1773235028250,1.24529089,86.139,86.113,11.61260749]
[1773235028439,1.24529089,86.139,86.11,7.55886533]
[1773235028939,1.24529089,86.139,86.111,11.61291821]
[1773235031360,1.24529089,86.137,86.111,11.61291821]
[1773235034143,11.60954769,86.136,86.111,11.61291821]
[1773235034463,1.24529089,86.135,86.109,1.24007035]
[1773235035161,1.24529089,86.135,86.11,7.55133074]
[1773235035550,1.24529089,86.139,86.111,1.24007035]
[1773235036159,1.24529089,86.138,86.112,11.61278335]
[1773235036862,11.6070075,86.155,86.111,1.24007035]
[1773235037063,1.24529089,86.154,86.13,8.79140109]
[1773235037467,1.24529089,86.161,86.139,1.24007035]
[1773235037970,11.60613541,86.162,86.141,1.24007035]
[1773235038343,1.24529089,86.167,86.141,1.24007035]
[1773235038748,1.24529089,86.167,86.142,11.60873905]
[1773235039056,11.60469492,86.173,86.151,1.24007035]
[1773235039257,1.24529089,86.176,86.151,1.24007035]
[1773235039567,1.24529089,86.174,86.143,1.24007035]
[1773235040450,1.25821856,86.172,86.145,1.32627606]
[1773235040761,1.25821856,86.172,86.144,11.60846953]
[1773235041064,1.25821856,86.172,86.145,1.32627606]
[1773235041260,1.25821856,86.177,86.15,8.87150569]
[1773235041567,1.25821856,86.177,86.151,1.32627606]
[1773235042073,0.2640472,86.249,86.172,1.32627606]
[1773235042263,0.2640472,86.249,86.144,179.93127782]
[1773235042264,7.54522963,86.24,86.173,1.32627606]
[1773235042453,7.54522963,86.23,86.194,11.60173561]
[1773235042655,11.59568176,86.239,86.2,7.54522963]
[1773235042851,11.59568176,86.239,86.201,1.32627606]
[1773235043157,11.59486662,86.246,86.211,1.32627606]
[1773235043358,7.54522963,86.24,86.211,1.32627606]
[1773235043668,11.59486662,86.246,86.211,1.32627606]
[1773235043864,0.2640472,86.249,86.211,1.32627606]
[1773235044173,0.2640472,86.249,86.231,1.32627606]
[1773235044353,0.2640472,86.249,86.233,1.32627606]
[1773235045449,0.2640472,86.249,86.191,1.32627606]
[1773235045450,1.25821856,86.239,86.191,1.32627606]
[1773235045677,1.25821856,86.229,86.191,1.32627606]
[1773235046471,1.25821856,86.229,86.19,7.54522963]
[1773235046472,11.59716101,86.228,86.193,1.32627606]
[1773235046776,1.25821856,86.219,86.184,1.32627606]
[1773235046970,7.54522963,86.24,86.201,1.32627606]
[1773235047175,7.64522963,86.25,86.211,1.32627606]
[1773235047372,11.8584205,86.249,86.211,1.32627606]
[1773235047674,13.11663906,86.249,86.211,1.32627606]
[1773235048672,1.25821856,86.265,86.225,0.92846437]
[1773235048878,1.25821856,86.265,86.212,11.59931332]
[1773235048879,1.25821856,86.265,86.24,7.54522963]
[1773235049081,1.25821856,86.265,86.217,0.93187571]
[1773235049082,1.25821856,86.265,86.23,7.54522963]
[1773235049377,1.25821856,86.296,86.26,7.54522963]
[1773235049552,1.25821856,86.309,86.28,7.54522963]
[1773235049759,1.25821856,86.299,86.26,7.54522963]
[1773235049953,1.25821856,86.324,86.29,7.54522963]
[1773235050374,7.54522963,86.35,86.31,7.54522963]
[1773235050584,7.54522963,86.33,86.29,7.54522963]
[1773235050880,7.54522963,86.32,86.283,1.32627606]
[1773235051050,191.08289309,86.35,86.271,1.32627606]
[1773235051251,11.58086649,86.35,86.291,1.32627606]
[1773235051457,19.12609612,86.35,86.3,1.32627606]
[1773235051657,19.12609612,86.35,86.272,40.56936201]
[1773235051658,7.54522963,86.33,86.29,7.54522963]
[1773235051874,7.54522963,86.32,86.282,1.32627606]
[1773235052174,4.82477569,86.346,86.27,7.54522963]
[1773235052358,4.82477569,86.346,86.263,1.32627606]
[1773235052359,7.54522963,86.3,86.263,1.32627606]
[1773235052559,1.25821856,86.297,86.263,1.32627606]
[1773235052852,0.14216157,86.318,86.219,3.69383402]
[1773235052853,11.58705922,86.304,86.27,7.54522963]
[1773235053050,1.25821856,86.323,86.29,7.54522963]
[1773235053275,46.30364801,86.387,86.31,7.54522963]
[1773235053276,1.25821856,86.349,86.31,7.54522963]
[1773235053457,1.25821856,86.349,86.3,1.32627606]
[1773235053458,1.25821856,86.349,86.32,7.54522963]
[1773235053657,1.25821856,86.349,86.311,1.32627606]
[1773235054155,1.25821856,86.349,86.31,7.54522963]
[1773235054359,1.25821856,86.359,86.321,1.32627606]
[1773235054561,12.83792165,86.358,86.321,1.32627606]
[1773235054861,1.25821856,86.357,86.312,1.32627606]
[1773235055074,1.25821856,86.357,86.32,7.54522963]
[1773235055273,11.57873877,86.366,86.34,7.54522963]
[1773235055469,1.25821856,86.365,86.32,7.54522963]
[1773235055777,1.25821856,86.349,86.31,7.54522963]
[1773235056082,1.25821856,86.339,86.254,1.32627606]
[1773235056275,1.25821856,86.309,86.266,1.32627606]
[1773235056471,1.25821856,86.309,86.271,1.32627606]
[1773235056853,3.69383402,86.35,86.251,1.32627606]
[1773235056854,8.80344819,86.29,86.251,1.32627606]
[1773235057084,1.25821856,86.307,86.261,1.32627606]
[1773235057260,1.25821856,86.307,86.271,1.32627606]
[1773235057663,7.54522963,86.3,86.271,1.32627606]
[1773235057887,1.25821856,86.299,86.252,1.32627606]
[1773235058073,1.25821856,86.289,86.241,1.32627606]
[1773235058378,1.25821856,86.289,86.22,11.59823706]
[1773235058379,40.69460166,86.308,86.23,7.54522963]
[1773235058380,1.25821856,86.269,86.23,7.54522963]
[1773235058573,1.25821856,86.259,86.22,7.54522963]
[1773235058761,1.25821856,86.257,86.22,7.54522963]
[1773235058960,1.25821856,86.257,86.216,1.32627606]
[1773235059183,1.25821856,86.257,86.22,8.87150569]
[1773235059381,1.25821856,86.257,86.211,1.32627606]
[1773235059677,1.25821856,86.257,86.22,7.54522963]
[1773235059885,1.25821856,86.257,86.221,1.3521325]
[1773235060280,1.29150561,86.249,86.21,7.54522963]
[1773235060484,1.29150561,86.249,86.201,1.3521325]
[1773235060686,1.29150561,86.249,86.21,7.54522963]
[1773235060895,11.59447175,86.248,86.21,7.54522963]
[1773235061286,11.59447175,86.248,86.183,2.36]
[1773235061287,1.29150561,86.239,86.189,1.3521325]
[1773235061591,1.29150561,86.229,86.19,7.54522963]
[1773235061774,1.29150561,86.229,86.19,8.89736213]
[1773235061974,1.29150561,86.229,86.191,1.3521325]
[1773235062284,1.29150561,86.219,86.18,7.54522963]
[1773235062491,1.29150561,86.219,86.181,1.3521325]
[1773235062686,1.43366718,86.229,86.19,8.89736213]
[1773235062869,11.59716101,86.228,86.19,1.3521325]
[1773235063192,11.59716101,86.228,86.19,7.54522963]
[1773235063193,1.29150561,86.226,86.19,7.54522963]
[1773235063380,1.29150561,86.226,86.182,1.3521325]
[1773235063585,1.29150561,86.219,86.17,7.54522963]
[1773235063772,1.29150561,86.219,86.18,7.54522963]
[1773235063975,1.29150561,86.219,86.179,1.3521325]
[1773235064567,1.29150561,86.219,86.176,1.3521325]
[1773235064987,8.83673524,86.21,86.176,1.3521325]
[1773235065188,1.29150561,86.207,86.171,1.3521325]
[1773235065400,1.29150561,86.229,86.191,1.3521325]
[1773235066072,7.54522963,86.22,86.191,1.3521325]
[1773235066289,1.29150561,86.228,86.191,1.3521325]
[1773235066687,7.54522963,86.2,86.167,40.61879837]
[1773235067074,7.54522963,86.19,86.161,11.60617912]
[1773235067473,1.29150561,86.199,86.161,40.62162694]
[1773235068188,7.54522963,86.19,86.161,11.60617912]
[1773235068986,1.29150561,86.21,86.162,0.92162604]
[1773235069200,1.29150561,86.21,86.18,7.54522963]
[1773235069997,1.28285522,86.208,86.17,8.46685567]
[1773235070397,7.54522963,86.22,86.181,0.93039108]
[1773235070596,19.13950689,86.25,86.211,0.93039108]
[1773235070797,1.28285522,86.249,86.211,0.93039108]
[1773235070990,1.28285522,86.249,86.22,7.54522963]
[1773235071303,1.28285522,86.249,86.221,11.59810255]
[1773235071486,1.28285522,86.261,86.221,11.59810255]
[1773235071847,1.28285522,86.249,86.204,0.93470105]
[1773235071996,7.54522963,86.24,86.205,11.6002552]
[1773235072502,7.54522963,86.22,86.184,0.93896553]
[1773235072896,7.54522963,86.22,86.184,12.54197149]
[1773235072897,1.28285522,86.219,86.184,12.54197149]
[1773235073392,1.28285522,86.217,86.18,7.54522963]
[1773235073593,1.28285522,86.217,86.181,11.60348568]
[1773235074003,1.28285522,86.217,86.174,0.94318554]
[1773235074004,1.28285522,86.217,86.174,12.54756226]
[1773235074298,8.82808485,86.2,86.163,12.55320987]
[1773235074598,40.59477139,86.218,86.17,8.49258764]
[1773235074599,1.28285522,86.211,86.17,8.49258764]
[1773235074798,7.54522963,86.21,86.171,0.94735801]
[1773235075296,1.28285522,86.209,86.171,0.94735801]
[1773235075684,1.28285522,86.209,86.17,7.54522963]
[1773235075685,11.59851965,86.218,86.173,0.9514866]
[1773235075890,7.54522963,86.21,86.173,0.9514866]
[1773235076194,1.28285522,86.209,86.173,0.9514866]
[1773235076595,11.59851965,86.218,86.18,8.50079021]
[1773235077382,7.54522963,86.22,86.18,8.50079021]
[1773235077590,11.59837158,86.219,86.181,11.60348568]
[1773235078385,1.28285522,86.219,86.182,0.963564]
[1773235078606,3.69383402,86.252,86.181,11.60348568]
[1773235078607,1.42501679,86.229,86.19,8.50879363]
[1773235078904,1.42501679,86.229,86.19,0.963564]
[1773235079101,8.82808485,86.22,86.181,41.57970134]
[1773235079710,20.4263635,86.22,86.182,0.96750145]
[1773235079911,8.82808485,86.22,86.182,0.96750145]
[1773235080697,7.54522963,86.22,86.182,0.96750145]
[1773235080901,1.28285522,86.229,86.182,0.96750145]
[1773235081205,8.82808485,86.24,86.2,7.54522963]
[1773235081594,1.28285522,86.238,86.199,0.97524171]
[1773235081804,1.28285522,86.229,86.19,7.54522963]
[1773235081997,1.28285522,86.219,86.177,0.97904997]
[1773235082202,1.28285522,86.229,86.191,0.97904997]
[1773235082793,7.54522963,86.22,86.181,11.60337931]
[1773235082999,1.28285522,86.219,86.181,11.60337931]
[1773235083910,1.28285522,86.217,86.181,40.61209352]
[1773235084289,1.28285522,86.209,86.171,11.60483225]
[1773235084489,1.28285522,86.179,86.14,8.53175014]
[1773235084693,1.28285522,86.159,86.126,11.61089566]
[1773235084905,1.28285522,86.149,86.126,11.61089566]
[1773235085194,8.82808485,86.16,86.126,11.61089566]
[1773235085405,1.28285522,86.149,86.12,0.2]
[1773235085593,7.54522963,86.16,86.121,11.61156976]
[1773235085801,7.54522963,86.15,86.121,11.61156976]
[1773235085999,0.14216157,86.177,86.12,0.2]
[1773235086000,1.28285522,86.139,86.12,0.2]
[1773235086195,7.54522963,86.13,86.12,0.2]
[1773235087013,7.54522963,86.15,86.121,11.61156976]
[1773235087312,7.54522963,86.14,86.12,0.2]
[1773235087500,1.28285522,86.149,86.12,11.8116615]
[1773235088794,7.54522963,86.13,86.094,1.31725607]
[1773235088996,7.54522963,86.13,86.096,1.31725607]
[1773235089191,1.28285522,86.129,86.096,1.31725607]
[1773235089514,7.54522963,86.12,86.089,1.31725607]
[1773235089712,7.54522963,86.11,86.072,1.31725607]
[1773235090119,7.54522963,86.11,86.074,1.31725607]
[1773235090718,11.61318793,86.109,86.074,1.31725607]
[1773235091094,1.28285522,86.108,86.073,11.61804514]
[1773235091295,1.28285522,86.108,86.074,1.31725607]
[1773235092215,1.28285522,86.106,86.075,1.31725607]
[1773235093918,0.14216157,86.117,86.075,1.31725607]
[1773235093919,1.28285522,86.116,86.075,1.31725607]
[1773235094221,1.28285522,86.114,86.077,1.31725607]
[1773235095394,7.55847306,86.11,86.077,1.31725607]
[1773235095699,1.28285522,86.114,86.077,1.31725607]
[1773235096196,3.69383402,86.143,86.072,1.31725607]
[1773235096197,1.28285522,86.109,86.072,1.31725607]
[1773235097409,1.28285522,86.109,86.073,12.93530121]
[1773235097609,12.89605102,86.109,86.073,12.93530121]
[1773235097907,12.89605102,86.109,86.074,1.31725607]
[1773235098108,11.6131958,86.109,86.074,1.31725607]
[1773235098309,1.42501679,86.119,86.081,1.31725607]
[1773235098524,1.28285522,86.118,86.081,1.31725607]
[1773235100410,1.28285522,86.118,86.083,1.34508456]
[1773235101019,1.30462301,86.116,86.083,1.34508456]
[1773235101851,8.86309607,86.11,86.083,1.34508456]
[1773235102025,1.30462301,86.109,86.082,11.61683046]
[1773235102226,1.29426721,86.089,86.05,0.2]
[1773235102410,7.55847306,86.07,86.031,1.34508456]
[1773235102617,1.09426721,86.079,86.032,1.34508456]
[1773235102927,46.44843642,86.117,86.03,7.75847306]
[1773235102928,7.55847306,86.05,86.03,0.2]
[1773235103220,0.14216157,86.067,86.012,28.1664968]
[1773235103221,0.89903673,86.049,86.012,28.1664968]
[1773235103422,0.89903673,86.049,85.973,47.97346482]
[1773235103423,7.55847306,86.02,85.981,11.6304765]
[1773235103615,7.55847306,86.03,85.99,7.55847306]
[1773235103816,7.55847306,86.0,85.96,0.2]
[1773235104010,7.55847306,86.01,85.981,11.6304765]
[1773235104312,7.55847306,86.0,85.96,0.2]
[1773235104516,7.55847306,86.0,85.971,11.63182415]
[1773235104723,7.55847306,86.0,85.96,0.2]
[1773235104724,7.55847306,85.99,85.96,0.2]
[1773235104932,0.14216157,85.989,85.96,0.2]
[1773235105222,7.55847306,85.98,85.96,0.2]
[1773235105530,7.55847306,85.97,85.935,11.63661352]
[1773235105824,3.69383402,85.997,85.927,11.63768255]
[1773235106028,7.55847306,85.96,85.923,1.44763302]
[1773235106227,7.55847306,85.96,85.92,0.2]
[1773235106523,7.55847306,85.95,85.92,0.2]
[1773235106730,46.50730164,86.008,85.921,11.63859824]
[1773235106912,7.55847306,85.96,85.921,13.08623126]
[1773235107112,0.02198704,86.007,85.94,7.55847306]
[1773235107312,46.4819049,86.055,85.922,2.38]
[1773235107313,7.55847306,86.0,85.961,1.44763302]
[1773235108030,7.59107982,86.0,85.96,7.55847306]
[1773235108533,7.59107982,86.0,85.961,40.7161387]
[1773235108722,3.69383402,86.033,85.961,40.7161387]
[1773235108723,0.03260676,86.037,85.981,1.44763302]
[1773235108922,7.55847306,86.02,85.981,1.44763302]
[1773235109346,0.03782092,86.027,85.961,87.24886865]
[1773235109347,0.03782092,86.027,85.99,7.55847306]
[1773235109526,0.03782092,86.027,85.961,87.24886865]
[1773235109527,7.55847306,86.02,85.98,7.55847306]
[1773235109721,7.55847306,86.02,85.99,7.55847306]
[1773235109915,0.03782092,86.027,85.99,7.55847306]
[1773235110121,7.55847306,86.02,85.98,7.55847306]
[1773235110322,7.60143623,86.02,85.98,7.55847306]
[1773235110538,0.14216157,86.037,85.981,11.6304765]
[1773235110539,7.55847306,86.01,85.981,11.6304765]
[1773235111234,0.04296317,86.019,85.981,40.70666775]
[1773235111538,7.55847306,86.01,85.981,40.70666775]
[1773235111934,7.55847306,86.01,85.981,11.6304765]
[1773235112237,0.04804901,86.018,85.981,11.6304765]
[1773235113048,7.55847306,86.01,85.981,11.6304765]
[1773235113239,0.14216157,86.009,85.981,11.6304765]
[1773235113426,0.14216157,86.009,85.973,11.63151476]
[1773235113942,0.14216157,86.009,85.973,40.71041162]
[1773235114439,7.55847306,86.0,85.973,40.71041162]
[1773235114623,11.62700669,86.007,85.973,11.63151476]
[1773235115024,0.14216157,86.009,85.973,11.63151476]
[1773235116028,0.14216157,86.009,85.973,40.71041162]
[1773235116330,11.62682541,86.008,85.973,11.63151476]
[1773235117036,7.55847306,86.0,85.965,11.63252951]
[1773235117219,7.55847306,85.98,85.949,1.44763302]
[1773235117414,7.55847306,85.98,85.912,46.55878714]
[1773235117415,0.07745851,85.979,85.93,7.55847306]
[1773235117616,7.55847306,85.98,85.93,19.19585232]
[1773235117617,7.63593157,85.97,85.93,19.19585232]
[1773235117837,7.63593157,85.97,85.93,48.28930047]
[1773235118045,0.08217208,85.969,85.93,48.28930047]
[1773235118539,7.55847306,85.97,85.941,1.44763302]
[1773235118931,7.55847306,85.97,85.931,1.44763302]
[1773235119329,11.63087627,85.979,85.931,1.44763302]
[1773235119541,19.18640138,86.0,85.961,1.44763302]
[1773235119926,0.09596947,85.999,85.961,1.44763302]
[1773235120126,0.09596947,85.999,85.96,7.55847306]
[1773235120127,7.55847306,85.98,85.95,7.55847306]
[1773235120544,0.14216157,85.989,85.95,7.55847306]
[1773235120841,7.55847306,85.99,85.951,1.474955]
[1773235121045,11.62939445,85.989,85.953,1.474955]
[1773235121239,7.55847306,85.99,85.953,1.474955]
[1773235121423,0.10047575,85.998,85.96,7.55847306]
[1773235121946,7.55847306,86.01,85.971,1.474955]
[1773235122344,7.70063463,86.02,85.981,1.474955]
[1773235122530,7.55847306,86.02,85.981,1.474955]
[1773235123043,7.55847306,86.02,85.983,1.474955]
[1773235123238,0.14216157,86.019,85.983,1.474955]
[1773235124348,7.55847306,86.02,85.983,1.474955]
[1773235125141,19.18374471,86.02,85.985,1.474955]
[1773235125547,7.55847306,86.01,85.971,1.474955]
[1773235125846,0.14216157,86.009,85.972,1.474955]
[1773235126243,11.62527165,86.02,85.972,1.474955]
[1773235126439,7.55847306,86.02,85.981,1.474955]
[1773235126747,0.14216157,86.029,85.991,1.474955]
[1773235127249,11.76625923,86.029,85.992,11.62898874]
[1773235127447,11.76625923,86.029,85.993,1.474955]
[1773235127744,7.55847306,86.03,85.993,1.474955]
[1773235128145,0.1304745,86.05,86.001,1.474955]
[1773235128450,7.55847306,86.04,86.011,1.474955]
[1773235129532,7.55847306,86.04,86.012,11.6262847]
[1773235129741,0.14216157,86.049,86.013,1.51373299]
[1773235129938,11.61425521,86.102,86.041,1.51373299]
[1773235130150,7.55847306,86.1,86.065,1.51373299]
[1773235130447,7.55847306,86.08,86.041,1.51373299]
[1773235130854,7.70104366,86.09,86.051,1.51373299]
[1773235131145,7.55847306,86.09,86.051,1.51373299]
[1773235131345,0.14216157,86.089,86.051,1.51373299]
[1773235131548,11.61588588,86.089,86.053,1.51373299]
[1773235131935,0.14216157,86.088,86.053,1.51373299]
[1773235132139,11.61588588,86.089,86.053,1.51373299]
[1773235132457,0.14216157,86.088,86.053,1.51373299]
[1773235132658,7.55847306,86.08,86.043,1.51373299]
[1773235132833,7.55847306,86.08,86.045,1.51373299]
[1773235133034,0.14216157,86.088,86.051,1.51373299]
[1773235133663,7.55847306,86.09,86.051,1.51373299]
[1773235133848,7.55847306,86.11,86.071,1.51373299]
[1773235134451,3.69383402,86.137,86.051,1.51373299]
[1773235134452,7.55847306,86.09,86.051,1.51373299]
[1773235134667,7.55847306,86.08,86.044,42.19059598]
[1773235134960,7.55847306,86.08,86.045,1.51373299]
[1773235135162,0.16188865,86.111,86.045,1.51373299]
[1773235135339,0.16188865,86.111,86.044,40.67686299]
[1773235135340,0.14216157,86.099,86.061,1.51373299]
[1773235135533,7.55847306,86.1,86.061,1.51373299]
[1773235135748,7.55847306,86.1,86.071,1.51373299]
[1773235136047,7.55847306,86.11,86.071,1.51373299]
[1773235136237,11.61209221,86.118,86.081,1.51373299]
[1773235136436,0.14216157,86.117,86.081,1.51373299]
[1773235136854,11.61209221,86.118,86.082,11.61683046]
[1773235137056,11.61209221,86.118,86.083,1.51373299]
[1773235137352,0.14216157,86.123,86.091,1.51373299]
[1773235137656,7.55847306,86.14,86.101,1.51373299]
[1773235137835,7.55847306,86.13,86.101,1.51373299]
[1773235138356,7.55847306,86.12,86.083,1.51373299]
[1773235138651,40.63017817,86.143,86.091,1.51373299]
[1773235138652,0.17294495,86.14,86.091,1.51373299]
[1773235138848,7.55847306,86.12,86.093,1.51373299]
[1773235139553,7.55847306,86.11,86.071,1.51373299]
[1773235139850,7.55847306,86.11,86.081,1.51373299]
[1773235140031,7.55847306,86.11,86.034,238.2778901]
[1773235140032,7.55847306,86.1,86.071,1.51373299]
[1773235140531,0.14216157,86.109,86.071,1.51373299]
[1773235140835,7.55847306,86.1,86.071,1.51373299]
[1773235141041,7.55847306,86.1,86.073,1.51373299]
[1773235141560,0.14216157,86.109,86.073,1.51373299]
[1773235141741,7.55847306,86.1,86.072,11.61818012]
[1773235141942,7.55847306,86.09,86.063,11.61938944]
[1773235142757,7.55847306,86.09,86.063,13.13312243]
[1773235143138,11.61150692,86.122,86.081,1.51373299]
[1773235143336,7.55847306,86.13,86.101,1.51373299]
[1773235143569,11.60954769,86.136,86.101,1.51373299]
[1773235143738,7.55847306,86.15,86.111,1.51373299]
[1773235145141,11.60779579,86.149,86.113,1.51373299]
[1773235146063,11.60779579,86.149,86.121,1.51373299]
[1773235146258,7.55847306,86.16,86.121,1.51373299]
[1773235146462,0.20060258,86.158,86.112,11.61278335]
[1773235146655,7.55847306,86.12,86.098,1.51373299]
[1773235147159,7.55847306,86.14,86.112,1.51373299]
[1773235147455,7.55847306,86.13,86.092,1.51373299]
[1773235147661,7.55847306,86.13,86.101,1.51373299]
[1773235147862,0.14216157,86.138,86.101,1.51373299]
[1773235148069,7.55847306,86.13,86.101,1.51373299]
[1773235148767,11.60914336,86.139,86.101,1.51373299]
[1773235149153,11.60914336,86.139,86.103,1.51373299]
[1773235149469,11.7500921,86.148,86.111,1.51373299]
[1773235149651,7.55847306,86.14,86.111,1.51373299]
[1773235149963,7.55847306,86.15,86.111,1.51373299]
[1773235150668,7.55847306,86.15,86.121,1.51373299]
[1773235151068,0.14216157,86.149,86.121,1.51373299]
[1773235151369,11.60914336,86.139,86.111,1.51373299]
[1773235151545,7.55847306,86.15,86.112,1.51373299]
[1773235151746,7.55847306,86.13,86.112,1.51373299]
[1773235152964,7.55847306,86.13,86.092,1.51373299]
[1773235153164,7.55847306,86.13,86.101,1.51373299]
[1773235153363,7.55847306,86.13,86.103,1.51373299]
[1773235153560,7.55433727,86.13,86.103,1.51373299]
[1773235153758,7.55433727,86.14,86.103,1.51373299]
[1773235155069,0.14216157,86.145,86.111,1.51373299]
[1773235155251,11.60820003,86.146,86.111,1.51373299]
[1773235155447,11.60820003,86.146,86.113,1.51373299]
[1773235155976,0.14216157,86.145,86.113,1.51373299]
[1773235156268,7.55433727,86.14,86.113,1.51373299]
[1773235156845,7.55433727,86.15,86.121,1.51373299]
[1773235157571,1.47223117,86.127,86.08,7.55433727]
[1773235157768,7.55433727,86.11,86.08,7.55433727]
[1773235157954,7.55433727,86.12,86.08,7.55433727]
[1773235158573,7.55433727,86.11,86.08,7.55433727]
[1773235159149,7.55433727,86.11,86.07,7.55433727]
[1773235159363,7.55433727,86.11,86.08,7.55433727]
[1773235159562,7.55433727,86.11,86.081,11.61696541]
[1773235159769,7.55433727,86.11,86.081,13.07920183]
[1773235160157,7.55433727,86.12,86.082,1.46223642]
[1773235160364,11.61049123,86.129,86.091,1.46223642]
[1773235160566,7.55433727,86.13,86.101,1.46223642]
[1773235160961,19.16478364,86.13,86.091,1.46223642]
[1773235161163,46.42246895,86.166,86.081,40.65937895]
[1773235161164,1.56724851,86.188,86.121,1.46223642]
[1773235161362,1.56724851,86.172,86.13,7.55433727]
[1773235161564,47.79612043,86.173,86.131,11.61022163]
[1773235161565,7.55433727,86.16,86.131,11.61022163]
[1773235161882,1.56724851,86.169,86.131,11.61022163]
[1773235162373,7.55433727,86.16,86.131,11.61022163]
[1773235162572,7.55433727,86.17,86.14,7.55433727]
[1773235162758,11.60483225,86.171,86.14,9.01657369]
[1773235163160,11.60483225,86.171,86.141,1.46223642]
[1773235163568,7.18006169,86.173,86.16,7.55433727]
[1773235163768,11.5989605,86.215,86.162,1.46223642]
[1773235163970,1.56724851,86.223,86.15,2.36]
[1773235163971,11.59971696,86.209,86.18,7.55433727]
[1773235164680,0.1,86.21,86.191,1.46223642]
[1773235165579,0.1,86.21,86.181,1.46223642]
[1773235165781,7.55433727,86.2,86.16,1.46223642]
[1773235165954,0.1,86.21,86.151,11.60752632]
[1773235165955,7.55433727,86.18,86.151,11.60752632]
[1773235166160,7.55433727,86.17,86.142,1.46223642]
[1773235167086,7.55433727,86.16,86.131,1.46223642]
[1773235167270,7.55433727,86.16,86.131,13.07245805]
[1773235167580,11.60644854,86.159,86.131,1.46223642]
[1773235167969,7.55433727,86.15,86.121,11.61150923]
[1773235168171,7.55433727,86.15,86.114,13.97241451]
[1773235168886,40.62256989,86.159,86.095,1.46223642]
[1773235168887,7.55433727,86.13,86.095,1.46223642]
[1773235169964,11.61049123,86.129,86.096,13.07717788]
[1773235170166,7.55433727,86.12,86.096,11.61494146]
[1773235170361,7.55433727,86.12,86.087,11.61615574]
[1773235170570,7.55433727,86.12,86.091,1.46223642]
[1773235170977,11.60780472,86.149,86.092,1.46223642]
[1773235171289,7.55433727,86.13,86.101,1.46223642]
[1773235171663,7.55433727,86.13,86.087,40.65654511]
[1773235171664,7.55433727,86.16,86.121,1.46223642]
[1773235171894,46.40051071,86.206,86.087,180.05041408]
[1773235171895,7.55433727,86.18,86.14,7.55433727]
[1773235172183,11.60375497,86.179,86.143,1.46223642]
[1773235172387,7.55433727,86.17,86.142,11.60873905]
[1773235173077,7.55433727,86.16,86.135,11.60967571]
[1773235173278,1.56724851,86.168,86.135,11.60967571]
[1773235173473,7.55433727,86.17,86.135,11.60967571]
[1773235173677,7.55433727,86.18,86.141,1.46223642]
[1773235173989,7.55433727,86.18,86.135,11.60967571]
[1773235173990,7.55433727,86.19,86.151,1.46223642]
[1773235174168,11.60240866,86.189,86.152,13.069628]
[1773235174369,0.14216157,86.188,86.153,1.46223642]
[1773235174568,11.60240866,86.189,86.153,1.46223642]
[1773235174789,7.55433727,86.18,86.153,1.46223642]
[1773235175276,11.60240866,86.189,86.153,1.46223642]
[1773235175485,7.55433727,86.18,86.153,1.46223642]
[1773235175684,0.14216157,86.188,86.153,1.46223642]
[1773235175989,0.14216157,86.189,86.161,1.46223642]
[1773235176189,11.74457023,86.189,86.161,1.46223642]
[1773235176363,11.74457023,86.189,86.153,11.60721494]
[1773235176364,1.56724851,86.189,86.153,11.60721494]
[1773235176683,20.72261391,86.2,86.161,1.46223642]
[1773235177085,11.60102813,86.2,86.171,1.46223642]
[1773235177279,7.65433727,86.21,86.171,1.46223642]
[1773235177471,11.60002834,86.207,86.171,1.46223642]
[1773235178361,11.60002834,86.207,86.172,13.066934]
[1773235179892,7.55433727,86.2,86.172,1.46223642]